fUST/lending_fUST_20260521
["ID","MTS","AMOUNT","RATE_DAILY","PERIOD"]
[422776275,1779378647000,-543.65614782,8.493e-05,2]
[422776277,1779378647000,-172.324057,8.493e-05,2]
[422776280,1779378647000,-172.324057,8.493e-05,2]
[422776261,1779378647000,-172.324057,8.493e-05,2]
[422776278,1779378647000,-172.324057,8.493e-05,2]
[422776263,1779378647000,-172.324057,8.493e-05,2]
[422776269,1779378647000,-501.48493491,8.493e-05,2]
[422776265,1779378647000,-500.0,8.493e-05,2]
[422776267,1779378647000,-501.56174332,8.493e-05,2]
[422776271,1779378647000,-172.324057,8.493e-05,2]
[422776284,1779378647000,-502.26054654,8.493e-05,2]
[422776286,1779378647000,-172.324057,8.493e-05,2]
[422776282,1779378647000,-172.324057,8.493e-05,2]
[422776226,1779378647000,-277.53974,8.493e-05,2]
[422776273,1779378647000,-172.324057,8.493e-05,2]
[422776219,1779378647000,-500.0,8.493e-05,2]
[422776173,1779378647000,-176.830321,8.493e-05,2]
[422776230,1779378647000,-277.53974,8.493e-05,2]
[422776170,1779378647000,-176.830321,8.493e-05,2]
[422776177,1779378647000,-368.31783327,8.493e-05,2]
[422776171,1779378647000,-176.830321,8.493e-05,2]
[422776175,1779378647000,-500.0,8.493e-05,2]
[422776181,1779378647000,-151.0,8.493e-05,2]
[422776182,1779378647000,-176.830321,8.493e-05,2]
[422776179,1779378647000,-176.830321,8.493e-05,2]
[422776184,1779378647000,-251.240471,8.493e-05,2]
[422776186,1779378647000,-176.830321,8.493e-05,2]
[422776190,1779378647000,-502.34803723,8.493e-05,2]
[422776194,1779378647000,-500.0,8.493e-05,2]
[422776192,1779378647000,-500.0,8.493e-05,2]
[422776188,1779378647000,-500.0,8.493e-05,2]
[422776195,1779378647000,-500.0,8.493e-05,2]
[422776197,1779378647000,-502.30660473,8.493e-05,2]
[422776199,1779378647000,-500.0,8.493e-05,2]
[422776206,1779378647000,-2143.27,8.493e-05,2]
[422776208,1779378647000,-532.57815947,8.493e-05,2]
[422776201,1779378647000,-500.19686198,8.493e-05,2]
[422776210,1779378647000,-582.10885884,8.493e-05,2]
[422776204,1779378647000,-500.0,8.493e-05,2]
[422776202,1779378647000,-500.0,8.493e-05,2]
[422776214,1779378647000,-500.0,8.493e-05,2]
[422776223,1779378647000,-500.0,8.493e-05,2]
[422776215,1779378647000,-500.0,8.493e-05,2]
[422776224,1779378647000,-500.0,8.493e-05,2]
[422776217,1779378647000,-500.0,8.493e-05,2]
[422776228,1779378647000,-501.30475955,8.493e-05,2]
[422776212,1779378647000,-1500.88,8.493e-05,2]
[422776221,1779378647000,-500.0,8.493e-05,2]
[422776290,1779378647000,-172.324057,8.493e-05,2]
[422776393,1779378647000,-282.93039,8.493e-05,2]
[422776303,1779378647000,-500.0,8.493e-05,2]
[422776352,1779378647000,-151.0,8.493e-05,2]
[422776368,1779378647000,-500.0,8.493e-05,2]
[422776370,1779378647000,-282.930381,8.493e-05,2]
[422776356,1779378647000,-151.0,8.493e-05,2]
[422776372,1779378647000,-282.930381,8.493e-05,2]
[422776374,1779378647000,-282.930381,8.493e-05,2]
[422776360,1779378647000,-1205.94,8.493e-05,2]
[422776362,1779378647000,-151.0,8.493e-05,2]
[422776358,1779378647000,-500.0,8.493e-05,2]
[422776366,1779378647000,-151.0,8.493e-05,2]
[422776364,1779378647000,-151.0,8.493e-05,2]
[422776376,1779378647000,-282.930381,8.493e-05,2]
[422776379,1779378647000,-282.930381,8.493e-05,2]
[422776381,1779378647000,-282.930381,8.493e-05,2]
[422776383,1779378647000,-282.930381,8.493e-05,2]
[422776385,1779378647000,-282.930381,8.493e-05,2]
[422776395,1779378647000,-500.69070383,8.493e-05,2]
[422776389,1779378647000,-282.930381,8.493e-05,2]
[422776387,1779378647000,-500.0,8.493e-05,2]
[422776397,1779378647000,-839.43,8.493e-05,2]
[422776391,1779378647000,-282.930381,8.493e-05,2]
[422776402,1779378647000,-500.0,8.493e-05,2]
[422776408,1779378647000,-530.62,8.493e-05,2]
[422776406,1779378647000,-684.62,8.493e-05,2]
[422776399,1779378647000,-500.0,8.493e-05,2]
[422776401,1779378647000,-500.39851773,8.493e-05,2]
[422776404,1779378647000,-501.21022341,8.493e-05,2]
[422776410,1779378647000,-2379.16,8.493e-05,2]
[422776305,1779378647000,-664.344349,8.493e-05,2]
[422776354,1779378647000,-151.0,8.493e-05,2]
[422776350,1779378647000,-151.0,8.493e-05,2]
[422776377,1779378647000,-282.930381,8.493e-05,2]
[422776345,1779378647000,-502.17006994,8.493e-05,2]
[422776348,1779378647000,-151.0,8.493e-05,2]
[422776292,1779378647000,-500.49931699,8.493e-05,2]
[422776295,1779378647000,-13138.33,8.493e-05,2]
[422776307,1779378647000,-664.344349,8.493e-05,2]
[422776301,1779378647000,-1035.99,8.493e-05,2]
[422776297,1779378647000,-500.0,8.493e-05,2]
[422776309,1779378647000,-664.344349,8.493e-05,2]
[422776311,1779378647000,-664.344349,8.493e-05,2]
[422776313,1779378647000,-664.344349,8.493e-05,2]
[422776319,1779378647000,-792.28,8.493e-05,2]
[422776315,1779378647000,-500.0,8.493e-05,2]
[422776317,1779378647000,-664.344349,8.493e-05,2]
[422776328,1779378647000,-2777.86,8.493e-05,2]
[422776325,1779378647000,-664.344349,8.493e-05,2]
[422776323,1779378647000,-664.344349,8.493e-05,2]
[422776299,1779378647000,-1541.79,8.493e-05,2]
[422776327,1779378647000,-664.344349,8.493e-05,2]
[422776321,1779378647000,-500.0,8.493e-05,2]
[422776337,1779378647000,-500.27072159,8.493e-05,2]
[422776343,1779378647000,-500.0,8.493e-05,2]
[422776341,1779378647000,-500.0,8.493e-05,2]
[422776338,1779378647000,-500.0,8.493e-05,2]
[422776339,1779378647000,-627.08158675,8.493e-05,2]
[422776336,1779378647000,-501.26370144,8.493e-05,2]
[422776347,1779378647000,-151.0,8.493e-05,2]
[422776332,1779378647000,-500.0,8.493e-05,2]
[422776331,1779378647000,-664.344349,8.493e-05,2]
[422776333,1779378647000,-500.95586114,8.493e-05,2]
[422776330,1779378647000,-664.344349,8.493e-05,2]
[422776329,1779378647000,-664.344349,8.493e-05,2]
[422776334,1779378647000,-501.13758682,8.493e-05,2]
[422776490,1779378648000,-500.0,8.493e-05,2]
[422776500,1779378648000,-156.57226069,8.493e-05,2]
[422776492,1779378648000,-500.0,8.493e-05,2]
[422776502,1779378648000,-670.34,8.498e-05,2]
[422776482,1779378648000,-500.0,8.493e-05,2]
[422776505,1779378648000,-557.5788265,8.517e-05,2]
[422776494,1779378648000,-500.0,8.493e-05,2]
[422776488,1779378648000,-501.1687762,8.493e-05,2]
[422776486,1779378648000,-500.72095809,8.493e-05,2]
[422776484,1779378648000,-500.0,8.493e-05,2]
[422776480,1779378648000,-501.01109865,8.493e-05,2]
[422776498,1779378648000,-500.0,8.493e-05,2]
[422776496,1779378648000,-544.64510269,8.493e-05,2]
[422776509,1779378648000,-273.94097114,8.572e-05,2]
[422776526,1779378648000,-492.45,8.579e-05,2]
[422776511,1779378648000,-2753.73998704,8.579e-05,2]
[422776522,1779378648000,-492.45,8.579e-05,2]
[422776515,1779378648000,-360.808738,8.579e-05,2]
[422776513,1779378648000,-2753.73998704,8.579e-05,2]
[422776524,1779378648000,-492.45,8.579e-05,2]
[422776516,1779378648000,-360.808738,8.579e-05,2]
[422776518,1779378648000,-360.808738,8.579e-05,2]
[422776520,1779378648000,-360.808746,8.579e-05,2]
[422776528,1779378648000,-492.45,8.579e-05,2]
[422776530,1779378648000,-277.53974,8.579e-05,2]
[422776532,1779378648000,-277.53974,8.579e-05,2]
[422776534,1779378648000,-277.53974,8.579e-05,2]
[422776542,1779378648000,-172.324057,8.579e-05,2]
[422776478,1779378648000,-500.65956743,8.493e-05,2]
[422776507,1779378648000,-163.90433,8.533e-05,2]
[422776466,1779378648000,-227.344388,8.493e-05,2]
[422776548,1779378648000,-664.344349,8.579e-05,2]
[422776464,1779378648000,-227.344388,8.493e-05,2]
[422776420,1779378648000,-501.47,8.493e-05,2]
[422776422,1779378648000,-500.0,8.493e-05,2]
[422776428,1779378648000,-838.66,8.493e-05,2]
[422776424,1779378648000,-500.0,8.493e-05,2]
[422776418,1779378648000,-500.0,8.493e-05,2]
[422776426,1779378648000,-500.0,8.493e-05,2]
[422776416,1779378648000,-500.0,8.493e-05,2]
[422776430,1779378648000,-500.0,8.493e-05,2]
[422776443,1779378648000,-958.96,8.493e-05,2]
[422776441,1779378648000,-227.344388,8.493e-05,2]
[422776431,1779378648000,-500.33137294,8.493e-05,2]
[422776448,1779378648000,-500.82520792,8.493e-05,2]
[422776446,1779378648000,-227.344388,8.493e-05,2]
[422776445,1779378648000,-227.344388,8.493e-05,2]
[422776434,1779378648000,-500.88102834,8.493e-05,2]
[422776437,1779378648000,-2362.26,8.493e-05,2]
[422776439,1779378648000,-500.0,8.493e-05,2]
[422776435,1779378648000,-500.0,8.493e-05,2]
[422776452,1779378648000,-227.344388,8.493e-05,2]
[422776450,1779378648000,-227.344388,8.493e-05,2]
[422776454,1779378648000,-227.344388,8.493e-05,2]
[422776456,1779378648000,-501.43380511,8.493e-05,2]
[422776458,1779378648000,-227.344388,8.493e-05,2]
[422776474,1779378648000,-500.0,8.493e-05,2]
[422776468,1779378648000,-500.0,8.493e-05,2]
[422776472,1779378648000,-500.0,8.493e-05,2]
[422776470,1779378648000,-227.344388,8.493e-05,2]
[422776461,1779378648000,-227.344388,8.493e-05,2]
[422776462,1779378648000,-227.344388,8.493e-05,2]
[422776476,1779378648000,-500.0,8.493e-05,2]
[422776555,1779378648000,-2933.16907752,8.679e-05,2]
[422776665,1779378648000,-500.0,8.767e-05,2]
[422776550,1779378648000,-664.344349,8.579e-05,2]
[422776613,1779378648000,-500.0,8.767e-05,2]
[422776606,1779378648000,-500.0,8.767e-05,2]
[422776625,1779378648000,-500.0,8.767e-05,2]
[422776615,1779378648000,-500.0,8.767e-05,2]
[422776627,1779378648000,-500.0,8.767e-05,2]
[422776629,1779378648000,-500.0,8.767e-05,2]
[422776633,1779378648000,-500.0,8.767e-05,2]
[422776617,1779378648000,-606.29500468,8.767e-05,2]
[422776631,1779378648000,-500.0,8.767e-05,2]
[422776619,1779378648000,-500.0,8.767e-05,2]
[422776621,1779378648000,-500.0,8.767e-05,2]
[422776635,1779378648000,-443.680814,8.767e-05,2]
[422776623,1779378648000,-500.0,8.767e-05,2]
[422776637,1779378648000,-500.0,8.767e-05,2]
[422776638,1779378648000,-500.0,8.767e-05,2]
[422776640,1779378648000,-500.0,8.767e-05,2]
[422776650,1779378648000,-500.0,8.767e-05,2]
[422776642,1779378648000,-500.0,8.767e-05,2]
[422776652,1779378648000,-500.0,8.767e-05,2]
[422776656,1779378648000,-500.0,8.767e-05,2]
[422776648,1779378648000,-500.0,8.767e-05,2]
[422776644,1779378648000,-500.0,8.767e-05,2]
[422776646,1779378648000,-500.0,8.767e-05,2]
[422776658,1779378648000,-500.0,8.767e-05,2]
[422776660,1779378648000,-500.0,8.767e-05,2]
[422776662,1779378648000,-500.0,8.767e-05,2]
[422776664,1779378648000,-500.0,8.767e-05,2]
[422776667,1779378648000,-500.0,8.767e-05,2]
[422776540,1779378648000,-172.324057,8.579e-05,2]
[422776611,1779378648000,-500.0,8.767e-05,2]
[422776609,1779378648000,-500.0,8.767e-05,2]
[422776654,1779378648000,-500.0,8.767e-05,2]
[422776602,1779378648000,-500.0,8.767e-05,2]
[422776604,1779378648000,-439.67087862,8.767e-05,2]
[422776538,1779378648000,-172.324057,8.579e-05,2]
[422776558,1779378648000,-160.0,8.688e-05,2]
[422776546,1779378648000,-664.344349,8.579e-05,2]
[422776544,1779378648000,-172.324059,8.579e-05,2]
[422776536,1779378648000,-277.539737,8.579e-05,2]
[422776552,1779378648000,-664.344358,8.579e-05,2]
[422776560,1779378648000,-161.7158655,8.688e-05,2]
[422776562,1779378648000,-1227.054,8.767e-05,2]
[422776568,1779378648000,-511.61264138,8.767e-05,2]
[422776564,1779378648000,-500.0,8.767e-05,2]
[422776566,1779378648000,-500.0,8.767e-05,2]
[422776574,1779378648000,-500.0,8.767e-05,2]
[422776572,1779378648000,-500.0,8.767e-05,2]
[422776553,1779378648000,-2933.16907752,8.679e-05,2]
[422776576,1779378648000,-399.73969229,8.767e-05,2]
[422776592,1779378648000,-500.0,8.767e-05,2]
[422776570,1779378648000,-500.0,8.767e-05,2]
[422776598,1779378648000,-500.0,8.767e-05,2]
[422776594,1779378648000,-500.0,8.767e-05,2]
[422776596,1779378648000,-500.0,8.767e-05,2]
[422776591,1779378648000,-500.0,8.767e-05,2]
[422776589,1779378648000,-500.0,8.767e-05,2]
[422776600,1779378648000,-500.0,8.767e-05,2]
[422776585,1779378648000,-500.0,8.767e-05,2]
[422776578,1779378648000,-500.0,8.767e-05,2]
[422776584,1779378648000,-500.0,8.767e-05,2]
[422776580,1779378648000,-500.0,8.767e-05,2]
[422776582,1779378648000,-500.0,8.767e-05,2]
[422776587,1779378648000,-500.0,8.767e-05,2]
[422776726,1779378649000,-500.0,8.767e-05,2]
[422776720,1779378649000,-500.0,8.767e-05,2]
[422776718,1779378649000,-490.45,8.767e-05,2]
[422776724,1779378649000,-571.67452742,8.767e-05,2]
[422776729,1779378649000,-500.0,8.767e-05,2]
[422776733,1779378649000,-500.0,8.767e-05,2]
[422776728,1779378649000,-500.0,8.767e-05,2]
[422776731,1779378649000,-500.0,8.767e-05,2]
[422776739,1779378649000,-1429.2,8.767e-05,2]
[422776748,1779378649000,-500.0,8.767e-05,2]
[422776737,1779378649000,-500.0,8.767e-05,2]
[422776740,1779378649000,-500.0,8.767e-05,2]
[422776743,1779378649000,-2881.359895,8.767e-05,2]
[422776750,1779378649000,-500.0,8.767e-05,2]
[422776752,1779378649000,-2881.359895,8.767e-05,2]
[422776746,1779378649000,-2881.359895,8.767e-05,2]
[422776745,1779378649000,-500.0,8.767e-05,2]
[422776722,1779378649000,-500.0,8.767e-05,2]
[422776754,1779378649000,-500.0,8.767e-05,2]
[422776735,1779378649000,-500.0,8.767e-05,2]
[422776716,1779378649000,-500.0,8.767e-05,2]
[422776678,1779378649000,-500.0,8.767e-05,2]
[422776712,1779378649000,-500.0,8.767e-05,2]
[422776761,1779378649000,-500.0,8.767e-05,2]
[422776669,1779378649000,-500.0,8.767e-05,2]
[422776680,1779378649000,-500.0,8.767e-05,2]
[422776671,1779378649000,-500.0,8.767e-05,2]
[422776682,1779378649000,-500.0,8.767e-05,2]
[422776675,1779378649000,-500.0,8.767e-05,2]
[422776673,1779378649000,-500.0,8.767e-05,2]
[422776677,1779378649000,-500.0,8.767e-05,2]
[422776689,1779378649000,-903.67,8.767e-05,2]
[422776714,1779378649000,-500.0,8.767e-05,2]
[422776693,1779378649000,-500.0,8.767e-05,2]
[422776697,1779378649000,-500.0,8.767e-05,2]
[422776702,1779378649000,-500.0,8.767e-05,2]
[422776691,1779378649000,-500.0,8.767e-05,2]
[422776700,1779378649000,-500.0,8.767e-05,2]
[422776706,1779378649000,-500.0,8.767e-05,2]
[422776704,1779378649000,-500.0,8.767e-05,2]
[422776699,1779378649000,-500.0,8.767e-05,2]
[422776710,1779378649000,-500.0,8.767e-05,2]
[422776708,1779378649000,-500.0,8.767e-05,2]
[422776695,1779378649000,-500.0,8.767e-05,2]
[422776758,1779378649000,-500.0,8.767e-05,2]
[422776756,1779378649000,-2881.35989,8.767e-05,2]
[422776857,1779378649000,-554.34416434,8.767e-05,2]
[422776828,1779378649000,-500.0,8.767e-05,2]
[422776816,1779378649000,-500.0,8.767e-05,2]
[422776819,1779378649000,-373.325262,8.767e-05,2]
[422776821,1779378649000,-500.0,8.767e-05,2]
[422776833,1779378649000,-500.0,8.767e-05,2]
[422776835,1779378649000,-176.830327,8.767e-05,2]
[422776847,1779378649000,-500.0,8.767e-05,2]
[422776852,1779378649000,-500.0,8.767e-05,2]
[422776838,1779378649000,-500.0,8.767e-05,2]
[422776826,1779378649000,-176.830321,8.767e-05,2]
[422776843,1779378649000,-500.0,8.767e-05,2]
[422776871,1779378649000,-155.5290541,8.767e-05,2]
[422776881,1779378649000,-500.0,8.767e-05,2]
[422776873,1779378649000,-2143.27,8.767e-05,2]
[422776885,1779378649000,-500.0,8.767e-05,2]
[422776879,1779378649000,-500.0,8.767e-05,2]
[422776877,1779378649000,-1500.88,8.767e-05,2]
[422776883,1779378649000,-500.0,8.767e-05,2]
[422776875,1779378649000,-500.34368594,8.767e-05,2]
[422776759,1779378649000,-500.0,8.767e-05,2]
[422776840,1779378649000,-500.0,8.767e-05,2]
[422776823,1779378649000,-176.830321,8.767e-05,2]
[422776831,1779378649000,-176.830321,8.767e-05,2]
[422776811,1779378649000,-500.0,8.767e-05,2]
[422776763,1779378649000,-500.0,8.767e-05,2]
[422776765,1779378649000,-500.0,8.767e-05,2]
[422776767,1779378649000,-500.0,8.767e-05,2]
[422776777,1779378649000,-500.0,8.767e-05,2]
[422776778,1779378649000,-500.0,8.767e-05,2]
[422776814,1779378649000,-373.325268,8.767e-05,2]
[422776780,1779378649000,-500.0,8.767e-05,2]
[422776769,1779378649000,-500.0,8.767e-05,2]
[422776784,1779378649000,-424.16,8.767e-05,2]
[422776775,1779378649000,-424.16,8.767e-05,2]
[422776771,1779378649000,-500.0,8.767e-05,2]
[422776787,1779378649000,-500.0,8.767e-05,2]
[422776790,1779378649000,-424.16,8.767e-05,2]
[422776792,1779378649000,-500.0,8.767e-05,2]
[422776803,1779378649000,-373.325268,8.767e-05,2]
[422776806,1779378649000,-500.0,8.767e-05,2]
[422776809,1779378649000,-373.325268,8.767e-05,2]
[422776798,1779378649000,-480.19713281,8.767e-05,2]
[422776800,1779378649000,-500.0,8.767e-05,2]
[422776773,1779378649000,-500.0,8.767e-05,2]
[422776795,1779378649000,-424.16,8.767e-05,2]
[422776973,1779378650000,-500.0,8.767e-05,2]
[422776985,1779378650000,-34548.86206,8.813e-05,2]
[422776983,1779378650000,-1496.7472284,8.813e-05,2]
[422776987,1779378650000,-1735.40971091,8.816e-05,2]
[422776961,1779378650000,-500.0,8.767e-05,2]
[422776965,1779378650000,-500.0,8.767e-05,2]
[422776963,1779378650000,-500.0,8.767e-05,2]
[422776945,1779378650000,-606.36228024,8.767e-05,2]
[422776943,1779378650000,-500.0,8.767e-05,2]
[422776981,1779378650000,-341.4909998,8.813e-05,2]
[422776947,1779378650000,-838.66,8.767e-05,2]
[422776967,1779378650000,-500.0,8.767e-05,2]
[422776969,1779378650000,-500.0,8.767e-05,2]
[422777012,1779378650000,-152.0,8.998e-05,7]
[422776977,1779378650000,-3111.25767185,8.779e-05,2]
[422776990,1779378650000,-3351.67984369,8.858e-05,2]
[422776975,1779378650000,-670.34,8.772e-05,2]
[422776971,1779378650000,-500.0,8.767e-05,2]
[422776988,1779378650000,-3351.67984369,8.858e-05,2]
[422776992,1779378650000,-163.90433,8.877e-05,2]
[422777004,1779378650000,-185.0,8.955e-05,2]
[422777006,1779378650000,-456.6225983,8.97e-05,2]
[422776994,1779378650000,-420.0,8.886e-05,2]
[422776996,1779378650000,-647.0,8.955e-05,2]
[422777010,1779378650000,-152.0,8.998e-05,7]
[422777000,1779378650000,-2203.0,8.955e-05,2]
[422776998,1779378650000,-1425.748,8.955e-05,2]
[422776949,1779378650000,-500.0,8.767e-05,2]
[422776979,1779378650000,-3111.25767185,8.779e-05,2]
[422776959,1779378650000,-500.0,8.767e-05,2]
[422776905,1779378650000,-500.0,8.767e-05,2]
[422776957,1779378650000,-500.0,8.767e-05,2]
[422776889,1779378650000,-500.0,8.767e-05,2]
[422776887,1779378650000,-500.0,8.767e-05,2]
[422776891,1779378650000,-500.0,8.767e-05,2]
[422776893,1779378650000,-500.0,8.767e-05,2]
[422776895,1779378650000,-500.0,8.767e-05,2]
[422776901,1779378650000,-1541.79,8.767e-05,2]
[422776899,1779378650000,-500.0,8.767e-05,2]
[422776897,1779378650000,-13138.33,8.767e-05,2]
[422776903,1779378650000,-1035.99,8.767e-05,2]
[422776907,1779378650000,-500.0,8.767e-05,2]
[422776909,1779378650000,-792.28,8.767e-05,2]
[422776911,1779378650000,-2777.86,8.767e-05,2]
[422776914,1779378650000,-500.0,8.767e-05,2]
[422776955,1779378650000,-958.96,8.767e-05,2]
[422776912,1779378650000,-500.0,8.767e-05,2]
[422776916,1779378650000,-500.0,8.767e-05,2]
[422776928,1779378650000,-500.0,8.767e-05,2]
[422776930,1779378650000,-500.0,8.767e-05,2]
[422776932,1779378650000,-684.62,8.767e-05,2]
[422776934,1779378650000,-2379.16,8.767e-05,2]
[422776922,1779378650000,-1205.94,8.767e-05,2]
[422776937,1779378650000,-500.0,8.767e-05,2]
[422776919,1779378650000,-500.0,8.767e-05,2]
[422776920,1779378650000,-500.0,8.767e-05,2]
[422776924,1779378650000,-237.99237973,8.767e-05,2]
[422776953,1779378650000,-500.0,8.767e-05,2]
[422776941,1779378650000,-501.47,8.767e-05,2]
[422776951,1779378650000,-2362.26,8.767e-05,2]
[422776927,1779378650000,-839.43,8.767e-05,2]
[422777002,1779378650000,-742.0,8.955e-05,2]
[422776939,1779378650000,-500.0,8.767e-05,2]
[422777014,1779378650000,-1756877.52495817,9e-05,7]
[422777056,1779378650000,-500.0,9.041e-05,2]
[422777074,1779378650000,-501.6020872,9.041e-05,2]
[422777057,1779378650000,-500.0,9.041e-05,2]
[422777059,1779378650000,-500.0,9.041e-05,2]
[422777063,1779378650000,-500.0,9.041e-05,2]
[422777061,1779378650000,-500.0,9.041e-05,2]
[422777076,1779378650000,-500.0,9.041e-05,2]
[422777078,1779378650000,-500.0,9.041e-05,2]
[422777080,1779378650000,-500.0,9.041e-05,2]
[422777091,1779378650000,-500.0,9.041e-05,2]
[422777093,1779378650000,-903.67,9.041e-05,2]
[422777096,1779378650000,-500.0,9.041e-05,2]
[422777094,1779378650000,-500.0,9.041e-05,2]
[422777069,1779378650000,-1042.7745,9.041e-05,2]
[422777087,1779378650000,-500.0,9.041e-05,2]
[422777081,1779378650000,-500.0,9.041e-05,2]
[422777085,1779378650000,-500.0,9.041e-05,2]
[422777083,1779378650000,-500.0,9.041e-05,2]
[422777100,1779378650000,-500.0,9.041e-05,2]
[422777104,1779378650000,-500.0,9.041e-05,2]
[422777102,1779378650000,-500.0,9.041e-05,2]
[422777105,1779378650000,-500.0,9.041e-05,2]
[422777107,1779378650000,-500.0,9.041e-05,2]
[422777109,1779378650000,-500.0,9.041e-05,2]
[422777111,1779378650000,-627.32777862,9.041e-05,2]
[422777113,1779378650000,-500.0,9.041e-05,2]
[422777115,1779378650000,-500.0,9.041e-05,2]
[422777008,1779378650000,-524.096164,8.97e-05,2]
[422777089,1779378650000,-500.0,9.041e-05,2]
[422777070,1779378650000,-500.0,9.041e-05,2]
[422777098,1779378650000,-500.0,9.041e-05,2]
[422777072,1779378650000,-500.0,9.041e-05,2]
[422777016,1779378650000,-160.0,9e-05,2]
[422777067,1779378650000,-500.0,9.041e-05,2]
[422777024,1779378650000,-500.0,9.041e-05,2]
[422777020,1779378650000,-500.0,9.01e-05,2]
[422777038,1779378650000,-310.08,9.041e-05,2]
[422777022,1779378650000,-500.0,9.041e-05,2]
[422777026,1779378650000,-500.0,9.041e-05,2]
[422777030,1779378650000,-500.0,9.041e-05,2]
[422777018,1779378650000,-500.0,9e-05,2]
[422777040,1779378650000,-500.0,9.041e-05,2]
[422777039,1779378650000,-250.5,9.041e-05,2]
[422777028,1779378650000,-500.0,9.041e-05,2]
[422777034,1779378650000,-500.0,9.041e-05,2]
[422777032,1779378650000,-500.0,9.041e-05,2]
[422777042,1779378650000,-486.89159194,9.041e-05,2]
[422777036,1779378650000,-500.0,9.041e-05,2]
[422777054,1779378650000,-500.0,9.041e-05,2]
[422777041,1779378650000,-500.0,9.041e-05,2]
[422777050,1779378650000,-500.0,9.041e-05,2]
[422777047,1779378650000,-500.0,9.041e-05,2]
[422777046,1779378650000,-500.0,9.041e-05,2]
[422777051,1779378650000,-500.0,9.041e-05,2]
[422777049,1779378650000,-500.0,9.041e-05,2]
[422777048,1779378650000,-292.27867845,9.041e-05,2]
[422777043,1779378650000,-500.0,9.041e-05,2]
[422777052,1779378650000,-500.0,9.041e-05,2]
[422777053,1779378650000,-500.0,9.041e-05,2]
[422777044,1779378650000,-500.0,9.041e-05,2]
[422777045,1779378650000,-500.0,9.041e-05,2]
[422777065,1779378650000,-621.92,9.041e-05,2]
[422777184,1779378651000,-500.0,9.041e-05,2]
[422777186,1779378651000,-500.0,9.041e-05,2]
[422777189,1779378651000,-2143.27,9.041e-05,2]
[422777204,1779378651000,-500.0,9.041e-05,2]
[422777202,1779378651000,-500.0,9.041e-05,2]
[422777191,1779378651000,-1500.88,9.041e-05,2]
[422777196,1779378651000,-500.0,9.041e-05,2]
[422777198,1779378651000,-500.0,9.041e-05,2]
[422777194,1779378651000,-500.0,9.041e-05,2]
[422777192,1779378651000,-500.0,9.041e-05,2]
[422777206,1779378651000,-500.0,9.041e-05,2]
[422777200,1779378651000,-584.01,9.041e-05,2]
[422777208,1779378651000,-500.0,9.041e-05,2]
[422777234,1779378651000,-1205.94,9.041e-05,2]
[422777210,1779378651000,-13138.33,9.041e-05,2]
[422777214,1779378651000,-1541.79,9.041e-05,2]
[422777217,1779378651000,-629.57,9.041e-05,2]
[422777216,1779378651000,-1035.99,9.041e-05,2]
[422777223,1779378651000,-2777.86,9.041e-05,2]
[422777220,1779378651000,-500.0,9.041e-05,2]
[422777221,1779378651000,-792.28,9.041e-05,2]
[422777226,1779378651000,-500.0,9.041e-05,2]
[422777229,1779378651000,-500.0,9.041e-05,2]
[422777227,1779378651000,-500.0,9.041e-05,2]
[422777231,1779378651000,-572.92,9.041e-05,2]
[422777233,1779378651000,-500.0,9.041e-05,2]
[422777235,1779378651000,-839.43,9.041e-05,2]
[422777181,1779378651000,-500.0,9.041e-05,2]
[422777212,1779378651000,-500.0,9.041e-05,2]
[422777175,1779378651000,-500.0,9.041e-05,2]
[422777126,1779378651000,-500.0,9.041e-05,2]
[422777177,1779378651000,-500.0,9.041e-05,2]
[422777236,1779378651000,-500.0,9.041e-05,2]
[422777125,1779378651000,-500.0,9.041e-05,2]
[422777123,1779378651000,-500.0,9.041e-05,2]
[422777121,1779378651000,-275.44,9.041e-05,2]
[422777119,1779378651000,-500.0,9.041e-05,2]
[422777128,1779378651000,-500.0,9.041e-05,2]